bitfinex/quotes_BTCUSD_20250110
["timestamp","ask_amount","ask_price","bid_price","bid_amount"]
[1736515907553,0.213087,93859.0,93791.0,0.10429976]
[1736515907764,0.213109,93849.0,93804.0,0.31750776]
[1736515907981,0.0001736,93894.0,93818.0,0.213178]
[1736515908185,0.0001736,93894.0,93808.0,0.213199]
[1736515908385,0.0001736,93894.0,93781.0,0.124]
[1736515908386,0.004272,93841.0,93825.0,0.21316]
[1736515908630,0.21305,93875.0,93826.0,0.10429976]
[1736515908980,0.0001736,93894.0,93781.0,0.124]
[1736515908981,0.213103,93852.0,93781.0,0.124]
[1736515909188,0.004271,93866.0,93837.0,0.213135]
[1736515909397,0.212944,93922.0,93838.0,0.31743276]
[1736515909595,0.00427,93895.0,93850.0,0.213104]
[1736515909813,0.212975,93908.0,93851.0,0.10429976]
[1736515910021,0.02091961,93937.0,93851.0,0.00704623]
[1736515910022,0.10429976,93872.0,93851.0,0.00704623]
[1736515910227,0.004271,93888.0,93852.0,0.10429976]
[1736515910426,0.004271,93888.0,93736.0,1.0537852]
[1736515910427,0.212948,93920.0,93861.0,0.10429976]
[1736515910659,0.00065187,93873.0,93862.0,0.213078]
[1736515910769,0.00065187,93873.0,93853.0,0.0070342]
[1736515910770,0.00065187,93873.0,93871.0,0.213057]
[1736515910974,0.00065187,93873.0,93853.0,0.0070342]
[1736515911174,0.00065187,93873.0,93853.0,0.10429976]
[1736515911378,0.10429976,93872.0,93854.0,0.00702819]
[1736515911579,0.213079,93862.0,93761.0,0.1]
[1736515911792,0.00065187,93873.0,93824.0,0.10429976]
[1736515911999,0.00065187,93873.0,93825.0,0.0235554]
[1736515912193,0.00065187,93873.0,93826.0,0.871224]
[1736515912399,0.00065187,93873.0,93851.0,0.213102]
[1736515912601,0.000173,93884.0,93876.0,0.213045]
[1736515912803,0.212924,93931.0,93877.0,0.00055406]
[1736515912998,0.37471922,93960.0,93865.0,0.10429976]
[1736515912999,0.212964,93913.0,93866.0,0.00055385]
[1736515913273,0.00140139,93906.0,93866.0,0.00055385]
[1736515913497,0.00140139,93906.0,93867.0,0.00055422]
[1736515913700,0.00140139,93906.0,93869.0,0.213062]
[1736515913870,7e-05,93906.0,93870.0,0.00055413]
[1736515914109,7e-05,93906.0,93872.0,0.023]
[1736515914378,0.0285539,93934.0,93875.0,0.023]
[1736515914584,0.0285539,93934.0,93876.0,0.93307382]
[1736515914792,0.00133069,93933.0,93887.0,0.213021]
[1736515915000,0.00133069,93933.0,93892.0,0.21301]
[1736515915232,0.00133069,93933.0,93894.0,0.213006]
[1736515915492,0.001331,93933.0,93895.0,0.00055338]
[1736515915719,0.001331,93933.0,93876.0,0.213046]
[1736515915932,0.001331,93933.0,93877.0,0.00055372]
[1736515916155,0.0285539,93934.0,93914.0,0.10429976]
[1736515916360,0.0285539,93934.0,93915.0,0.10485237]
[1736515916559,0.0285539,93934.0,93915.0,0.10429976]
[1736515916766,0.0285539,93934.0,93916.0,0.00055329]
[1736515916995,0.0285539,93934.0,93919.0,0.10429976]
[1736515917480,0.0285539,93934.0,93920.0,0.10429976]
[1736515918317,0.0285539,93934.0,93916.0,0.00069938]
[1736515918523,0.00133075,93933.0,93916.0,0.00014643]
[1736515918744,0.15,93931.0,93916.0,0.00014643]
[1736515918951,0.15,93931.0,93880.0,0.00055334]
[1736515918952,0.15,93929.0,93838.0,0.213132]
[1736515919167,0.00133146,93928.0,93881.0,0.10429976]
[1736515919375,0.00133146,93928.0,93887.0,0.10429976]
[1736515919586,0.0285539,93934.0,93888.0,0.00055335]
[1736515919793,0.0285539,93934.0,93890.0,0.213013]
[1736515920010,0.00133094,93933.0,93891.0,0.00055342]
[1736515920221,0.0285539,93934.0,93891.0,0.00055342]
[1736515920432,0.0285539,93934.0,93902.0,0.212986]
[1736515920680,0.0285539,93934.0,93910.0,0.212968]
[1736515920889,0.0285539,93934.0,93919.0,0.212948]
[1736515921092,0.0285539,93934.0,93906.0,7e-05]
[1736515921093,0.212852,93962.0,93920.0,0.00055265]
[1736515921325,0.0001732,93967.0,93911.0,0.00055241]
[1736515921326,0.00133048,93961.0,93911.0,0.00055241]
[1736515921535,0.00133048,93961.0,93910.0,0.0499]
[1736515921536,0.00133048,93961.0,93910.0,0.00014649]
[1736515921743,0.00133048,93961.0,93912.0,0.10429976]
[1736515921744,0.15,93959.0,93912.0,0.10429976]
[1736515921998,0.15,93939.0,93910.0,0.00014649]
[1736515922206,0.15,93937.0,93910.0,0.00014649]
[1736515922408,0.10429976,93931.0,93910.0,0.00014649]
[1736515922624,0.00133137,93930.0,93910.0,0.00014649]
[1736515922834,0.212929,93928.0,93910.0,0.00014649]
[1736515923048,0.37471922,93970.0,93910.0,0.00014649]
[1736515923049,0.37471922,93970.0,93910.0,0.10444625]
[1736515923257,0.10429976,93957.0,93911.0,0.10429976]
[1736515923462,0.212867,93955.0,93911.0,0.10429976]
[1736515923669,0.00133088,93954.0,93912.0,0.00055301]
[1736515923887,0.37477222,94000.0,93926.0,0.10429976]
[1736515924089,0.00133061,93966.0,93927.0,0.00055265]
[1736515924294,0.10563037,93966.0,93928.0,0.10429976]
[1736515924503,0.10429976,93965.0,93928.0,0.10429976]
[1736515924717,0.212819,94000.0,93932.0,0.173]
[1736515924718,5.3e-05,94000.0,93932.0,0.173]
[1736515924918,0.00093344,93968.0,93964.0,0.10429976]
[1736515925121,0.00093344,93968.0,93965.0,0.00106393]
[1736515925543,0.00093344,93968.0,93964.0,0.10429976]
[1736515925751,0.00093344,93968.0,93966.0,0.00106403]
[1736515926161,4.37e-05,93995.0,93966.0,0.00106403]
[1736515926373,4.37e-05,93995.0,93967.0,0.42568]
[1736515926580,4.37e-05,93995.0,93968.0,0.02406369]
[1736515926797,0.00052304,93995.0,93994.0,0.10429976]
[1736515927005,0.00052304,93995.0,93994.0,0.03632426]
[1736515927207,0.00052304,93995.0,93994.0,0.10429976]
[1736515927416,0.00052304,93995.0,93956.0,0.212863]
[1736515927619,0.00077794,94026.0,93930.0,0.1219]
[1736515927620,0.1,94089.0,93967.0,0.10429976]
[1736515927830,0.10429976,94032.0,93980.0,0.10429976]
[1736515928034,0.212695,94031.0,93980.0,0.10429976]
[1736515928240,0.10429976,94031.0,93983.0,0.10429976]
[1736515928446,0.10429976,94030.0,93989.0,0.10429976]
[1736515928655,0.47514129,94030.0,93944.0,0.00106388]
[1736515928860,0.15,94009.0,93948.0,0.10429976]
[1736515929063,0.15,94009.0,93949.0,0.0010641]
[1736515929269,0.212763,94001.0,93957.0,0.212863]
[1736515929477,0.212832,93971.0,93958.0,0.02235046]
[1736515929688,0.1,94048.0,93931.0,0.00047934]
[1736515929689,0.37084153,93970.0,93931.0,0.00047934]
[1736515929902,0.15,93949.0,93931.0,0.00047934]
[1736515930107,0.425826,93935.0,93931.0,0.00047934]
[1736515930312,0.10429976,93944.0,93879.0,0.001065]
[1736515930516,0.212936,93925.0,93886.0,0.10429976]
[1736515930730,0.15,93943.0,93887.0,0.00106485]
[1736515930935,0.212824,93975.0,93872.0,0.0001698]
[1736515930936,0.15,93927.0,93888.0,0.10429976]
[1736515931134,0.15,93927.0,93878.0,0.00014649]
[1736515931135,0.37084153,93910.0,93878.0,0.00014649]
[1736515931342,0.10429976,93909.0,93879.0,0.10429976]
[1736515931558,0.37084153,93950.0,93879.0,0.10429976]
[1736515931764,0.37084153,93950.0,93878.0,0.00121164]
[1736515931765,0.10429976,93945.0,93880.0,0.10536491]
[1736515931970,0.10429976,93945.0,93898.0,0.10429976]
[1736515932173,0.15,93962.0,93899.0,0.11579446]
[1736515932382,0.15,93940.0,93899.0,0.10429976]
[1736515932590,0.10429976,93927.0,93878.0,7.799e-05]
[1736515932800,0.37084153,93990.0,93878.0,0.001143]
[1736515933006,0.349841,93989.0,93878.0,0.001143]
[1736515933214,0.10429976,93964.0,93902.0,0.10429976]
[1736515933392,0.10429976,93964.0,93914.0,0.10429976]
[1736515933646,0.212803,93984.0,93870.0,0.44844153]
[1736515933647,0.212843,93966.0,93925.0,0.212934]
[1736515933864,0.212843,93966.0,93923.0,0.10429976]
[1736515933865,0.212817,93978.0,93928.0,0.10429976]
[1736515934077,8.49e-05,94006.0,93928.0,0.10429976]
[1736515934078,0.212828,93973.0,93929.0,0.00106428]
[1736515934284,0.212831,93972.0,93930.0,0.212924]
[1736515934493,0.212831,93972.0,93928.0,0.10429976]
[1736515934494,8.49e-05,94006.0,93946.0,0.212887]
[1736515934699,8.49e-05,94006.0,93926.0,0.0778]
[1736515934700,0.10429976,94001.0,93947.0,0.12665262]
[1736515934910,0.10429976,93996.0,93947.0,0.12558846]
[1736515935116,0.10429976,93995.0,93948.0,0.00106437]
[1736515935319,8.49e-05,94006.0,93952.0,0.10429976]
[1736515935573,0.212786,93991.0,93926.0,0.0778]
[1736515935781,8.49e-05,94006.0,93961.0,0.10429976]
[1736515936004,8.49e-05,94006.0,93927.0,0.01338433]
[1736515936005,0.00047938,94001.0,93980.0,0.21281]
[1736515936203,0.00047938,94001.0,93981.0,0.10536355]
[1736515936423,0.00047938,94001.0,93981.0,0.00106379]
[1736515936630,0.00047938,94001.0,93992.0,0.077]
[1736515936838,0.00047938,94001.0,94000.0,0.10429976]
[1736515937043,8.49e-05,94006.0,94000.0,0.31706476]
[1736515937264,0.212632,94060.0,94005.0,0.10429976]
[1736515937498,8.63e-05,94058.0,94023.0,0.10429976]
[1736515937714,0.00106334,94057.0,94024.0,0.03276478]
[1736515937920,0.00106334,94057.0,94031.0,0.212695]
[1736515938131,8.63e-05,94058.0,94032.0,0.10536304]
[1736515938976,0.00065247,94033.0,94032.0,0.10536304]
[1736515939151,8.63e-05,94058.0,94032.0,0.10536304]
[1736515939391,8.63e-05,94058.0,94047.0,0.212658]
[1736515939632,8.63e-05,94058.0,94048.0,0.10536278]
[1736515939839,8.63e-05,94083.0,94058.0,0.15]
[1736515940061,8.63e-05,94083.0,94078.0,0.10429976]
[1736515940291,0.00106334,94122.0,94059.0,0.12789273]
[1736515940292,0.00106334,94122.0,94081.0,0.10429976]
[1736515940496,0.212416,94155.0,94115.0,0.212504]
[1736515940672,0.00106334,94154.0,94116.0,0.00106229]
[1736515940941,0.00106334,94154.0,94116.0,0.10429976]
[1736515941153,0.0011788,94128.0,94117.0,0.24524444]
[1736515941356,0.0011788,94128.0,94127.0,0.10429976]
[1736515941581,0.0011788,94128.0,94127.0,0.1053618]
[1736515941797,7e-05,94161.0,94127.0,0.1053618]
[1736515941999,7e-05,94161.0,94141.0,0.10429976]
[1736515942203,7e-05,94161.0,94148.0,0.10429976]
[1736515942414,7e-05,94161.0,94153.0,0.10429976]
[1736515942836,7e-05,94161.0,94154.0,0.10429976]
[1736515943050,7e-05,94161.0,94127.0,7.799e-05]
[1736515943261,7e-05,94161.0,94136.0,0.10429976]
[1736515943481,0.37084153,94210.0,94127.0,7.799e-05]
[1736515943482,0.37084153,94250.0,94160.0,0.10429976]
[1736515943683,0.212214,94245.0,94192.0,0.21233]
[1736515943888,0.00106334,94244.0,94193.0,0.0010613]
[1736515944109,0.15106334,94252.0,94193.0,0.0010613]
[1736515944313,0.00106334,94252.0,94193.0,0.0010613]
[1736515944534,0.00106334,94252.0,94200.0,0.10429976]
[1736515944783,0.0166445,94286.0,94217.0,0.10429976]
[1736515944991,0.00106334,94285.0,94217.0,0.10429976]
[1736515945195,0.00106334,94285.0,94204.0,0.0465]
[1736515945196,0.0166445,94286.0,94235.0,0.212233]
[1736515945433,0.00106334,94296.0,94262.0,0.10429976]
[1736515945687,0.00111534,94300.0,94264.0,0.10429976]
[1736515945912,0.00106334,94299.0,94264.0,0.10429976]
[1736515946085,0.10429976,94287.0,94236.0,0.00106059]
[1736515946341,0.00055142,94288.0,94259.0,0.10429976]
[1736515946545,0.00055142,94288.0,94268.0,0.10429976]
[1736515946765,0.00055142,94288.0,94269.0,0.00106065]
[1736515947394,0.00055142,94288.0,94287.0,0.10429976]
[1736515947601,0.00055142,94288.0,94256.0,0.0010603]
[1736515947807,0.00055142,94288.0,94268.0,0.10429976]
[1736515948028,0.00055142,94288.0,94281.0,0.10429976]
[1736515948230,0.00055142,94288.0,94287.0,0.10429976]
[1736515948446,0.00055142,94288.0,94287.0,0.10535998]
[1736515948644,5.2e-05,94300.0,94287.0,0.10535998]
[1736515948848,5.2e-05,94300.0,94299.0,0.10429976]
[1736515949480,8.53e-05,94313.0,94299.0,0.10429976]
[1736515949685,8.53e-05,94313.0,94312.0,0.10429976]
[1736515950950,8.53e-05,94313.0,94293.0,0.00106009]
[1736515951126,0.21211,94291.0,94264.0,0.00106009]
[1736515951329,0.212113,94289.0,94263.0,0.00106054]
[1736515951532,0.15,94288.0,94234.0,0.00106064]
[1736515951740,0.072,94287.0,94206.0,0.00106059]
[1736515951934,0.10429976,94238.0,94160.0,0.0756]
[1736515952140,0.212325,94195.0,94171.0,0.10429976]
[1736515952407,0.15,94219.0,94172.0,0.00106164]
[1736515952630,0.00106334,94218.0,94172.0,0.00106164]
[1736515952865,0.00106334,94218.0,94160.0,0.0756]
[1736515952866,0.1412606,94217.0,94173.0,0.10429976]
[1736515953182,0.10429976,94214.0,94173.0,0.10429976]
[1736515953384,0.212325,94195.0,94127.0,0.0822]
[1736515953500,0.36854506,94180.0,94129.0,0.10429976]
[1736515953709,0.15,94170.0,94130.0,0.00106214]
[1736515953911,0.15,94170.0,94100.0,0.075]
[1736515953912,0.15,94159.0,94101.0,0.0010622]
[1736515954122,0.00106334,94158.0,94127.0,0.00014587]
[1736515954330,0.10429976,94157.0,94128.0,0.10429976]
[1736515954528,0.212469,94132.0,94127.0,0.00014587]
[1736515954730,0.212472,94130.0,94127.0,0.00014587]
[1736515954941,0.362476,94128.0,94127.0,0.00014587]
[1736515955227,0.212575,94085.0,94062.0,0.00106268]
[1736515955378,0.212524,94107.0,94100.0,0.00048025]
[1736515955592,0.362538,94101.0,94100.0,0.00048025]
[1736515955795,0.212636,94058.0,94028.0,0.00106309]
[1736515956032,0.00106334,94057.0,94034.0,0.10429976]
[1736515956201,0.00106334,94068.0,94034.0,0.10429976]
[1736515956410,0.212619,94065.0,94035.0,0.10536314]
[1736515956614,0.15,94089.0,94035.0,0.10536314]
[1736515956963,0.15,94083.0,94035.0,0.10429976]
[1736515957172,0.212664,94045.0,94035.0,0.10429976]
[1736515957343,0.212672,94042.0,94035.0,0.10429976]
[1736515957582,0.212672,94042.0,94035.0,0.11473674]
[1736515957799,0.10429976,94082.0,94036.0,0.00106334]
[1736515958008,0.425333,94044.0,94037.0,0.10429976]
[1736515958217,0.212582,94082.0,94038.0,0.00106331]
[1736515958451,0.00106334,94081.0,94047.0,0.10429976]
[1736515958688,0.212608,94070.0,94048.0,0.01149306]
[1736515958903,0.212601,94073.0,94049.0,0.10429976]
[1736515959094,0.212571,94086.0,94063.0,1.5]
[1736515959343,0.10429976,94104.0,94064.0,0.10536273]
[1736515959588,0.10429976,94099.0,94033.0,7e-05]
[1736515959822,0.15,94089.0,94034.0,0.10536289]
[1736515959992,0.10429976,94094.0,94034.0,0.10536289]
[1736515959993,0.1053631,94088.0,94036.0,0.10429976]
[1736515960211,0.15,94085.0,94036.0,0.10429976]
[1736515960419,0.212682,94037.0,94033.0,0.00011879]
[1736515960633,0.15,94034.0,94033.0,0.00011879]
[1736515960836,0.2553631,94034.0,94033.0,0.00011879]
[1736515961058,0.25429976,94034.0,94033.0,0.00011879]
[1736515961259,0.212686,94035.0,94033.0,0.00011879]
[1736515961468,0.36854506,94090.0,94033.0,0.00011879]
[1736515961693,0.10429976,94034.0,94033.0,0.00011879]
[1736515961908,0.1053631,94034.0,94033.0,0.00011879]
[1736515962308,0.15,94032.0,93962.0,0.0762]
[1736515962514,0.15,94030.0,93962.0,0.0762]
[1736515962717,0.1053631,94029.0,94001.0,0.03501]
[1736515962932,0.212693,94032.0,94002.0,0.10536351]
[1736515963137,0.00106334,94031.0,94030.0,0.1]
[1736515963342,0.21269,94034.0,94030.0,0.1]
[1736515963550,0.212577,94084.0,94033.0,0.10429976]
[1736515963755,1.0,94130.0,94057.0,0.10429976]
[1736515963968,0.1053631,94129.0,94072.0,0.10429976]
[1736515964403,0.36854506,94110.0,94072.0,0.10429976]
[1736515964600,1.00048042,94130.0,94084.0,0.10429976]
[1736515964816,1.00048042,94130.0,94091.0,0.10429976]
[1736515964817,0.00106334,94129.0,94091.0,0.10429976]
[1736515965030,0.00106334,94129.0,94066.0,0.15]
[1736515965031,0.212476,94128.0,94094.0,0.10429976]
[1736515965236,1.00048042,94130.0,94114.0,0.10429976]
[1736515965442,1.00048042,94130.0,94115.0,0.18553523]
[1736515965660,1.00048042,94130.0,94115.0,0.00106223]
[1736515966062,0.00106334,94129.0,94105.0,0.0803]
[1736515966265,0.212496,94120.0,94106.0,0.10536229]
[1736515966472,1.00048042,94130.0,94118.0,0.10429976]
[1736515966687,1.00048042,94130.0,94119.0,0.00106229]
[1736515966891,1.00048042,94130.0,94127.0,0.10429976]
[1736515967534,1.00048042,94130.0,94077.0,0.00106234]
[1736515967744,0.00106334,94129.0,94100.0,0.10429976]
[1736515967955,0.98582494,94130.0,94102.0,0.10429976]
[1736515968178,0.98582494,94130.0,94128.0,0.10429976]
[1736515968586,0.98582494,94130.0,94103.0,0.00106227]
[1736515968796,0.98582494,94130.0,94117.0,0.10429976]
[1736515969007,0.98582494,94130.0,94129.0,0.10429976]
[1736515969653,0.98582494,94130.0,94103.0,0.00106229]
[1736515969870,0.98582494,94130.0,94107.0,0.10429976]
[1736515970083,0.98582494,94130.0,94108.0,0.00106233]
[1736515970286,0.212528,94106.0,94081.0,0.00106247]
[1736515970545,0.30824923,94120.0,94082.0,0.11243601]
[1736515970786,0.98582494,94130.0,94093.0,0.10429976]
[1736515971012,0.98582494,94130.0,94100.0,0.10429976]
[1736515971300,0.98582494,94130.0,94101.0,0.0328535]
[1736515971529,0.98582494,94130.0,94102.0,0.10429976]
[1736515971760,4e-05,94104.0,94103.0,0.00106241]
[1736515971962,4e-05,94104.0,94103.0,0.10536217]
[1736515972187,4e-05,94104.0,94080.0,0.00106244]
[1736515972397,4e-05,94104.0,94081.0,0.10429976]
[1736515972618,4e-05,94104.0,94030.0,0.312696]
[1736515972619,0.10429976,94103.0,94030.0,0.312696]
[1736515972827,0.212578,94083.0,94041.0,0.10429976]
[1736515973035,0.212542,94099.0,94044.0,0.10429976]
[1736515973240,0.212542,94099.0,94041.0,0.00106324]
[1736515973241,0.10429976,94098.0,94046.0,0.10429976]
[1736515973445,0.212569,94087.0,94051.0,0.10429976]
[1736515973646,0.212583,94081.0,94052.0,0.00106293]
[1736515973866,0.10429976,94080.0,94052.0,0.00106293]
[1736515974071,0.212612,94068.0,94042.0,0.00106323]
[1736515974360,0.11472974,94079.0,94040.0,0.0768]
[1736515974361,0.11472974,94079.0,94043.0,0.10429976]
[1736515974590,0.212648,94052.0,94051.0,0.00014665]
[1736515975034,0.212683,94037.0,94007.0,0.0813]
[1736515975246,0.10429976,94036.0,94030.0,0.10014522]
[1736515975446,0.21269,94034.0,94030.0,0.10014522]
[1736515975649,0.10429976,94031.0,94000.0,0.3501]
[1736515976072,0.212717,94022.0,94007.0,0.10429976]
[1736515976293,0.21273,94016.0,94006.0,0.00064987]
[1736515976499,0.212746,94009.0,94006.0,0.00064987]
[1736515976708,0.10429976,94008.0,94006.0,0.00064987]
[1736515976902,0.21275,94007.0,94006.0,0.00064987]
[1736515977128,0.31704976,94007.0,94006.0,0.00064987]
[1736515977522,0.212772,93997.0,93950.0,0.0750008]
[1736515977723,0.30824923,93970.0,93950.0,0.07606506]
[1736515977927,0.30824923,93970.0,93950.0,0.0750008]
[1736515978344,0.21287,93955.0,93950.0,0.0750008]
[1736515978803,0.212849,93963.0,93950.0,0.0750008]
[1736515978991,0.30824923,93970.0,93951.0,0.00750008]
[1736515979219,0.30872895,93970.0,93951.0,0.00750008]
[1736515979425,0.212876,93951.0,93950.0,0.0750008]
[1736515980046,0.31717576,93951.0,93950.0,0.0750008]
[1736515980472,0.31717576,93951.0,93950.0,0.0550008]
[1736515980677,0.212897,93942.0,93935.0,0.0001702]
[1736515980892,0.15,93941.0,93935.0,0.0001702]
[1736515981105,0.30824923,93920.0,93912.0,0.0001694]
[1736515981340,0.212949,93919.0,93912.0,0.0001694]
[1736515981744,0.212934,93926.0,93912.0,0.0001694]
[1736515981952,0.30824923,93922.0,93912.0,0.0001694]
[1736515982180,0.30824923,93922.0,93899.0,0.0100522]
[1736515982386,0.30824923,93930.0,93912.0,6.679e-05]
[1736515982843,0.30824923,93930.0,93913.0,0.10429976]
[1736515983012,0.30824923,93950.0,93914.0,0.01150131]
[1736515983221,0.30824923,93950.0,93915.0,1.60429976]
[1736515983434,0.05660931,93930.0,93914.0,0.00700503]
[1736515983626,0.212953,93918.0,93914.0,0.00700503]
[1736515983833,0.212957,93916.0,93912.0,6.679e-05]
[1736515984008,0.10429976,93915.0,93899.0,0.0100522]
[1736515984213,0.30824923,93909.0,93900.0,0.10429976]
[1736515984405,0.30824923,93930.0,93901.0,0.11573496]
[1736515984609,0.30824923,93911.0,93901.0,0.11573496]
[1736515984816,0.212969,93910.0,93901.0,0.0114352]
[1736515985088,0.30824923,93911.0,93899.0,0.01019858]
[1736515985089,0.425967,93904.0,93899.0,0.01019858]
[1736515985468,0.212988,93902.0,93899.0,0.01019858]
[1736515985674,0.212969,93910.0,93856.0,0.0001704]
[1736515985675,0.213024,93886.0,93856.0,0.0001704]
[1736515985877,0.46732376,93886.0,93856.0,0.0001704]
[1736515986084,0.363024,93886.0,93885.0,0.00031712]
[1736515986292,0.213024,93886.0,93885.0,0.00031712]
[1736515986907,0.31732376,93886.0,93885.0,0.00031712]
[1736515987111,0.46732376,93886.0,93885.0,0.00031712]
[1736515988273,0.213053,93873.0,93856.0,0.0001704]
[1736515988490,0.21309,93857.0,93856.0,0.0001704]
[1736515988664,0.21309,93857.0,93856.0,0.00064907]
[1736515988883,0.213075,93864.0,93810.0,0.30824923]
[1736515989084,0.213061,93870.0,93823.0,0.10429976]
[1736515989085,0.00047907,93857.0,93823.0,0.10429976]
[1736515989290,0.00047907,93857.0,93811.0,0.00106552]
[1736515989291,0.00047907,93857.0,93829.0,0.10429976]
[1736515989508,0.00047907,93857.0,93831.0,0.10429976]
[1736515989721,0.10429976,93856.0,93832.0,0.01053653]
[1736515989928,0.213108,93850.0,93833.0,0.10429976]
[1736515990201,0.00106576,93849.0,93801.0,0.00106566]
[1736515990409,0.00106576,93849.0,93802.0,0.10429976]
[1736515990410,0.15,93848.0,93802.0,0.10429976]
[1736515990613,0.213166,93824.0,93819.0,0.1]
[1736515990814,0.213168,93823.0,93819.0,0.1]
[1736515991226,0.213171,93821.0,93819.0,0.1]
[1736515991447,0.10536552,93820.0,93819.0,0.1]
[1736515991856,0.213171,93821.0,93819.0,0.1]
[1736515991857,0.00047878,93821.0,93819.0,0.1]
[1736515992278,0.00047878,93821.0,93820.0,0.10536561]
[1736515992484,0.00047878,93821.0,93820.0,0.12590217]
[1736515992899,0.38974923,93920.0,93830.0,0.30824923]
[1736515993100,0.38974923,93920.0,93838.0,0.10429976]
[1736515993101,0.213056,93872.0,93838.0,0.10429976]
[1736515993233,0.10429976,93905.0,93846.0,0.10429976]
[1736515993432,0.212983,93904.0,93854.0,0.10429976]
[1736515993645,0.30824923,93940.0,93863.0,0.10429976]
[1736515993849,0.0485,93952.0,93864.0,0.00106505]
[1736515993850,0.00106576,93939.0,93864.0,0.00106505]
[1736515994081,0.042674,93931.0,93864.0,0.00106505]
[1736515994271,0.0485,93952.0,93870.0,0.30824923]
[1736515994272,0.00106576,93930.0,93870.0,0.30824923]
[1736515994466,0.10429976,93929.0,93877.0,0.213042]
[1736515994672,0.212946,93921.0,93885.0,0.10429976]
[1736515994899,0.00047965,93952.0,93871.0,0.28660263]
[1736515994900,0.01107392,93960.0,93915.0,0.10429976]
[1736515995113,0.01107392,93960.0,93943.0,0.10429976]
[1736515995317,0.01107392,93960.0,93944.0,0.04231897]
[1736515995524,0.212829,93972.0,93946.0,0.10429976]
[1736515995729,0.00106576,93971.0,93947.0,0.00106415]
[1736515995934,0.00056484,93968.0,93947.0,0.00106422]
[1736515996136,0.00056484,93968.0,93960.0,0.10429976]
[1736515996338,0.212696,94031.0,93960.0,0.10429976]
[1736515996339,0.212734,94014.0,93967.0,0.10429976]
[1736515996607,0.01147297,94078.0,93989.0,0.10429976]
[1736515996777,0.212704,94028.0,93994.0,0.10429976]
[1736515996979,0.212704,94028.0,93995.0,0.00106356]
[1736515997183,0.00123656,94024.0,93996.0,0.11589972]
[1736515997392,0.10429976,94023.0,93996.0,0.01053633]
[1736515997548,0.00123656,94024.0,93996.0,0.01053633]
[1736515997549,0.0001708,94024.0,94017.0,0.10429976]
[1736515997779,0.0001708,94024.0,94023.0,0.10429976]
[1736515997987,0.0001708,94024.0,94023.0,0.10536293]
[1736515999221,0.0001708,94024.0,94001.0,0.0010634]
[1736515999421,0.0001708,94024.0,94002.0,0.10429976]
[1736515999648,0.0001708,94024.0,94011.0,0.10429976]
[1736515999798,0.0001708,94024.0,94019.0,0.10429976]
[1736515999999,0.0001708,94024.0,94023.0,0.10429976]
[1736516000208,0.212596,94075.0,94023.0,0.10536291]
[1736516000412,0.212609,94070.0,94038.0,0.10429976]
[1736516000636,0.212636,94058.0,94039.0,0.01042998]
[1736516000934,0.0469,94095.0,93980.0,0.212809]
[1736516000935,0.10536552,94057.0,93980.0,0.212809]
[1736516001139,0.425469,94014.0,93986.0,0.10429976]
[1736516001345,0.00106576,94013.0,93986.0,0.10429976]
[1736516001576,0.10429976,94012.0,93981.0,0.00454002]
[1736516001752,0.00106576,94011.0,93987.0,0.00216716]
[1736516001988,0.15,94009.0,93982.0,0.00453629]
[1736516002161,0.212789,93990.0,93961.0,4.882e-05]
[1736516002364,0.212789,93990.0,93962.0,0.10429976]
[1736516002569,0.425578,93990.0,93963.0,0.00106404]
[1736516002775,0.212794,93988.0,93964.0,0.11484102]
[1736516002980,0.00106576,93987.0,93965.0,0.00106401]
[1736516003183,0.10429976,94008.0,93966.0,0.10429976]
[1736516003184,0.212817,93978.0,93966.0,0.10429976]
[1736516003389,0.212829,93972.0,93966.0,0.00459604]
[1736516003607,0.30824923,94000.0,93961.0,4.882e-05]
[1736516003608,0.00106576,93971.0,93961.0,4.882e-05]
[1736516003810,0.212852,93962.0,93961.0,4.882e-05]
[1736516004039,0.46715176,93962.0,93961.0,4.882e-05]
[1736516005198,0.46715176,93962.0,93961.0,8.2e-07]
[1736516005430,0.15,93944.0,93874.0,0.0001706]
[1736516005640,0.10563078,93943.0,93890.0,0.10429976]
[1736516005851,0.212849,93963.0,93901.0,0.10429976]
[1736516006056,0.212854,93961.0,93908.0,0.09846956]
[1736516006262,0.30824923,93990.0,93917.0,0.212952]
[1736516006462,0.258508,93982.0,93918.0,0.21295]
[1736516006667,0.21286,93959.0,93908.0,0.09846956]
[1736516006886,0.00133041,93958.0,93923.0,0.10429976]
[1736516007093,0.212889,93946.0,93923.0,0.10429976]
[1736516007297,0.212889,93946.0,93923.0,0.1047797]
[1736516007504,0.00133059,93945.0,93923.0,0.00047994]
[1736516007718,0.15,93967.0,93923.0,0.00047994]
[1736516007719,0.212906,93938.0,93923.0,0.00047994]
[1736516007925,0.15,93967.0,93928.0,0.10429976]
[1736516008128,0.30824923,93990.0,93934.0,0.10429976]
[1736516008346,0.212811,93980.0,93935.0,0.10429976]
[1736516008553,0.212811,93980.0,93945.0,0.10429976]
[1736516008755,0.212809,93981.0,93952.0,0.10429976]
[1736516008963,0.212831,93972.0,93952.0,0.10429976]
[1736516009167,0.212831,93972.0,93953.0,0.01042998]
[1736516009377,0.212831,93972.0,93954.0,0.10429976]
[1736516009791,0.30824923,94010.0,93954.0,0.10429976]
[1736516009999,0.212806,93982.0,93954.0,0.10429976]
[1736516010205,0.0013302,93981.0,93954.0,0.10429976]
[1736516010431,0.212826,93974.0,93955.0,0.01506712]
[1736516010631,0.15,93989.0,93956.0,0.10429976]
[1736516010842,0.0013302,93988.0,93956.0,0.10893316]
[1736516011050,0.30824923,94010.0,93956.0,0.10893316]
[1736516011248,0.15,93989.0,93956.0,0.10893316]
[1736516011475,0.212833,93971.0,93956.0,0.0046334]
[1736516011677,0.10562996,93988.0,93956.0,0.0046334]
[1736516011678,0.00133029,93970.0,93956.0,0.0046334]
[1736516011923,0.212839,93968.0,93954.0,0.00047994]
[1736516012173,0.212861,93958.0,93957.0,0.00462966]
[1736516012436,0.212861,93958.0,93954.0,0.00047994]
[1736516012660,0.30824923,93970.0,93954.0,0.00047994]
[1736516012941,0.212865,93956.0,93954.0,0.00047994]
[1736516013142,0.30824923,93990.0,93955.0,0.10429976]
[1736516013343,0.212796,93987.0,93961.0,0.10429976]
[1736516013556,0.212786,93991.0,93962.0,0.01042998]
[1736516013788,0.00133016,93990.0,93963.0,0.10429976]
[1736516013995,0.30824923,94020.0,93963.0,0.10429976]
[1736516014204,0.21276,94003.0,93968.0,0.10429976]
[1736516014412,0.10429976,94019.0,93969.0,0.11519046]
[1736516014620,0.30824923,94000.0,93970.0,0.10429976]
[1736516014824,0.2128,93985.0,93970.0,0.10888086]